bitfinex/quotes_BTCUSD_20250212
["timestamp","ask_amount","ask_price","bid_price","bid_amount"]
[1739371355695,0.12550365,95722.0,95721.0,0.00035671]
[1739371356322,0.28220665,95722.0,95721.0,0.00035671]
[1739371357285,0.43220665,95722.0,95721.0,0.00035671]
[1739371357487,0.156769,95682.0,95662.0,0.08424999]
[1739371357689,0.28227265,95682.0,95681.0,0.00066946]
[1739371358498,0.156769,95682.0,95681.0,0.00066946]
[1739371359246,0.25927265,95682.0,95681.0,0.00066946]
[1739371359399,0.28227265,95682.0,95681.0,0.00066946]
[1739371359597,0.28227265,95682.0,95617.0,0.00022344]
[1739371359598,0.20908,95657.0,95639.0,0.209118]
[1739371359807,0.156816,95653.0,95652.0,0.00035695]
[1739371360000,0.209075,95660.0,95652.0,0.00035695]
[1739371360331,0.209047,95673.0,95652.0,0.00035695]
[1739371360529,0.156805,95661.0,95652.0,0.15717495]
[1739371360894,0.156805,95661.0,95652.0,0.20944695]
[1739371361115,0.209067,95663.0,95655.0,0.156813]
[1739371361317,0.209063,95665.0,95652.0,0.00535695]
[1739371361675,0.02,95695.0,95652.0,0.00535695]
[1739371361891,0.10250365,95681.0,95652.0,0.00535695]
[1739371362064,0.002,95682.0,95668.0,0.156791]
[1739371362263,0.10250365,95681.0,95652.0,0.00535695]
[1739371362487,0.156784,95673.0,95652.0,0.00535695]
[1739371362713,0.10250365,95681.0,95663.0,0.156799]
[1739371362856,0.1568,95663.0,95654.0,0.156815]
[1739371363059,0.36285298,95680.0,95652.0,0.00635695]
[1739371363060,0.1568,95664.0,95656.0,0.156811]
[1739371363278,0.1568,95663.0,95653.0,0.209088]
[1739371363688,0.156797,95665.0,95658.0,0.156808]
[1739371363890,0.209034,95678.0,95652.0,0.00035695]
[1739371363891,0.156785,95672.0,95665.0,0.156796]
[1739371364089,0.156791,95669.0,95662.0,0.156801]
[1739371364290,0.209048,95672.0,95653.0,0.209089]
[1739371364557,0.156796,95666.0,95659.0,0.156805]
[1739371364744,0.156797,95665.0,95658.0,0.156808]
[1739371365192,0.209032,95679.0,95652.0,0.01083991]
[1739371365389,0.156789,95670.0,95663.0,0.1568]
[1739371365590,0.156787,95672.0,95653.0,0.209089]
[1739371365836,0.156787,95672.0,95658.0,0.003]
[1739371365988,0.023,95686.0,95658.0,0.003]
[1739371366190,0.22066979,95670.0,95652.0,0.00035695]
[1739371366392,0.156805,95661.0,95653.0,0.001]
[1739371366616,0.209069,95662.0,95654.0,0.156814]
[1739371366817,0.156801,95663.0,95654.0,0.156814]
[1739371367018,0.01100139,95689.0,95652.0,0.00035695]
[1739371367218,0.13874002,95684.0,95652.0,0.00035695]
[1739371367490,0.156795,95666.0,95659.0,0.156806]
[1739371367693,0.156799,95664.0,95657.0,0.156808]
[1739371367810,0.209033,95679.0,95652.0,0.00035695]
[1739371368008,0.156795,95667.0,95659.0,0.156805]
[1739371368210,0.209033,95679.0,95652.0,0.00035695]
[1739371368460,0.15679,95670.0,95652.0,0.00035695]
[1739371368668,0.02092767,95684.0,95653.0,0.10250365]
[1739371368839,0.005,95685.0,95681.0,0.15677]
[1739371369056,0.005,95685.0,95653.0,0.10250365]
[1739371369259,0.209035,95678.0,95653.0,0.10250365]
[1739371369465,0.156789,95670.0,95653.0,0.10250365]
[1739371369620,0.001,95664.0,95660.0,0.156804]
[1739371369826,0.001,95664.0,95653.0,0.10250365]
[1739371370028,0.209042,95675.0,95665.0,0.156795]
[1739371370243,0.156785,95673.0,95666.0,0.156795]
[1739371370449,0.0209042,95674.0,95665.0,0.00013351]
[1739371370654,0.209034,95679.0,95666.0,0.156795]
[1739371370854,0.05063177,95672.0,95665.0,0.00013351]
[1739371371085,0.156788,95671.0,95665.0,0.00013351]
[1739371371310,0.156795,95666.0,95665.0,0.00013351]
[1739371371511,0.156788,95671.0,95665.0,0.00013351]
[1739371372071,0.05063177,95672.0,95671.0,0.156787]
[1739371372249,0.05063177,95672.0,95671.0,0.25929065]
[1739371372454,0.156754,95691.0,95684.0,0.156765]
[1739371372632,0.156754,95691.0,95685.0,0.156764]
[1739371372833,0.208999,95694.0,95672.0,0.209047]
[1739371373042,0.156762,95686.0,95673.0,0.10250365]
[1739371373215,0.156762,95686.0,95673.0,0.10150365]
[1739371373564,0.0112,95727.0,95673.0,0.11251432]
[1739371373801,0.417816,95736.0,95673.0,0.11251432]
[1739371373802,0.0802,95721.0,95673.0,0.11251432]
[1739371373996,0.156735,95703.0,95694.0,0.156748]
[1739371374226,0.02138378,95711.0,95673.0,0.11251432]
[1739371374227,0.08424999,95720.0,95680.0,0.22066979]
[1739371374430,0.08424999,95720.0,95712.0,0.156719]
[1739371374622,0.08424999,95720.0,95709.0,0.208965]
[1739371374830,0.01076768,95724.0,95688.0,0.209011]
[1739371375032,0.10250365,95723.0,95689.0,0.10250365]
[1739371375229,0.002,95691.0,95689.0,0.10250365]
[1739371375361,0.002,95691.0,95690.0,0.209008]
[1739371375567,0.002,95691.0,95690.0,0.31151165]
[1739371375828,0.05062929,95723.0,95721.0,0.155705]
[1739371376036,0.05062929,95723.0,95722.0,0.156703]
[1739371376231,0.05062929,95723.0,95722.0,0.1723733]
[1739371376436,0.05107547,95723.0,95722.0,0.156703]
[1739371376588,0.01991898,95723.0,95722.0,0.156703]
[1739371376783,0.01991898,95723.0,95722.0,0.155703]
[1739371377065,0.01991898,95723.0,95697.0,0.02129584]
[1739371377271,0.01991898,95723.0,95690.0,0.015]
[1739371377481,0.1012,95721.0,95690.0,0.11750365]
[1739371377667,0.023,95719.0,95690.0,0.11750365]
[1739371377867,0.023,95719.0,95690.0,0.015]
[1739371377868,0.208998,95695.0,95690.0,0.015]
[1739371378170,0.156751,95693.0,95690.0,0.015]
[1739371378376,0.023,95710.0,95691.0,0.156754]
[1739371378586,0.156745,95697.0,95688.0,0.156758]
[1739371378806,0.0156745,95696.0,95689.0,0.156756]
[1739371378996,0.208979,95704.0,95687.0,0.209014]
[1739371379201,0.156742,95699.0,95690.0,0.216007]
[1739371379402,0.02048836,95709.0,95692.0,0.156751]
[1739371379610,0.05062929,95703.0,95691.0,0.007]
[1739371380030,0.05062929,95703.0,95690.0,0.00013351]
[1739371380253,0.05062929,95703.0,95698.0,0.208989]
[1739371380452,0.05062929,95703.0,95690.0,0.02113351]
[1739371380658,0.156754,95691.0,95690.0,0.02113351]
[1739371380867,0.1724294,95691.0,95690.0,0.02113351]
[1739371381076,0.29793305,95691.0,95690.0,0.02113351]
[1739371381447,0.28225765,95691.0,95690.0,0.00613351]
[1739371381849,0.29317059,95691.0,95690.0,0.00013351]
[1739371382665,0.34679988,95691.0,95690.0,0.00013351]
[1739371382868,0.34879988,95691.0,95690.0,0.00013351]
[1739371383301,0.34579988,95691.0,95690.0,0.00013351]
[1739371383504,0.20938329,95691.0,95690.0,0.00013351]
[1739371383701,0.20738329,95691.0,95690.0,0.00013351]
[1739371384280,0.05062929,95691.0,95690.0,0.00013351]
[1739371384686,0.07737716,95691.0,95690.0,0.00013351]
[1739371384893,0.09046177,95691.0,95690.0,0.00013351]
[1739371385103,0.09246177,95691.0,95690.0,0.00013351]
[1739371385334,0.08646177,95691.0,95690.0,0.00013351]
[1739371385678,0.08646177,95691.0,95690.0,0.00113351]
[1739371385880,0.20996542,95691.0,95690.0,0.00113351]
[1739371386238,0.0637139,95691.0,95690.0,0.00513351]
[1739371386489,0.05062929,95691.0,95690.0,0.00443351]
[1739371387438,0.20738329,95691.0,95690.0,0.00443351]
[1739371387642,0.20738329,95691.0,95690.0,0.00043351]
[1739371388045,0.20938329,95691.0,95690.0,0.00043351]
[1739371388248,0.156759,95689.0,95657.0,0.15]
[1739371388628,0.156759,95689.0,95680.0,0.156771]
[1739371388765,0.209008,95690.0,95678.0,0.156774]
[1739371389112,0.156784,95673.0,95665.0,0.156795]
[1739371389351,0.12550365,95689.0,95653.0,0.209088]
[1739371389560,0.156763,95686.0,95678.0,0.156775]
[1739371389772,0.04744114,95686.0,95660.0,0.10250365]
[1739371389990,0.209008,95690.0,95663.0,0.209067]
[1739371389991,0.001,95690.0,95663.0,0.209067]
[1739371390213,0.001,95690.0,95663.0,0.10250365]
[1739371390606,0.156768,95683.0,95675.0,0.15678]
[1739371390811,0.156768,95683.0,95663.0,0.10250365]
[1739371390952,0.156775,95678.0,95671.0,0.156786]
[1739371391162,0.05074444,95685.0,95659.0,0.20929823]
[1739371391163,0.0156775,95677.0,95672.0,0.156785]
[1739371391571,0.156783,95674.0,95667.0,0.156792]
[1739371391944,0.0156775,95677.0,95675.0,0.003]
[1739371392149,0.05074444,95676.0,95675.0,0.003]
[1739371392372,0.05074444,95676.0,95674.0,0.156781]
[1739371393018,0.05074444,95676.0,95673.0,0.156783]
[1739371393235,0.05074444,95676.0,95672.0,0.007]
[1739371393448,0.05074444,95675.0,95672.0,0.007]
[1739371393656,0.05074444,95675.0,95672.0,0.163785]
[1739371393781,0.05074444,95675.0,95672.0,0.007]
[1739371393981,0.05074444,95675.0,95674.0,0.156782]
[1739371396226,0.05074444,95675.0,95674.0,0.158782]
[1739371396444,0.01951709,95675.0,95674.0,0.156782]
[1739371396636,0.01951709,95675.0,95674.0,0.162782]
[1739371396829,0.01951709,95675.0,95674.0,0.165782]
[1739371397125,0.01951709,95675.0,95674.0,0.156782]
[1739371397319,0.02051709,95675.0,95674.0,0.168782]
[1739371397671,0.001,95675.0,95674.0,0.168782]
[1739371397886,0.001,95675.0,95674.0,0.172782]
[1739371398642,0.03125436,95689.0,95681.0,0.15677]
[1739371398857,0.07096957,95688.0,95681.0,0.15677]
[1739371399068,0.03125436,95688.0,95687.0,0.156761]
[1739371400129,0.03425436,95688.0,95687.0,0.156761]
[1739371400326,0.03125436,95688.0,95687.0,0.156761]
[1739371400530,0.00013378,95691.0,95690.0,0.156756]
[1739371402573,0.00013378,95691.0,95690.0,0.01]
[1739371402806,0.00013378,95691.0,95690.0,0.013]
[1739371403337,0.01967036,95691.0,95690.0,0.013]
[1739371405922,0.14517401,95691.0,95690.0,0.003]
[1739371406126,0.156771,95681.0,95673.0,0.156782]
[1739371406329,0.023,95690.0,95659.0,0.00022323]
[1739371406498,0.156778,95677.0,95669.0,0.156789]
[1739371406703,0.209032,95679.0,95670.0,0.156788]
[1739371406907,0.209032,95679.0,95659.0,0.01076155]
[1739371406908,0.209018,95686.0,95672.0,0.156785]
[1739371407112,0.05084242,95678.0,95665.0,0.209062]
[1739371407392,0.156779,95676.0,95669.0,0.15679]
[1739371407514,0.023,95674.0,95663.0,0.00222323]
[1739371407732,0.05084242,95678.0,95663.0,0.00022323]
[1739371407936,0.156789,95670.0,95663.0,0.00022323]
[1739371408137,0.156792,95668.0,95663.0,0.00022323]
[1739371408336,0.209041,95675.0,95663.0,0.00022323]
[1739371408670,0.1896443,95677.0,95668.0,0.156791]
[1739371408874,0.156779,95676.0,95669.0,0.015]
[1739371409077,0.05084242,95674.0,95669.0,0.015]
[1739371409260,0.05084242,95674.0,95672.0,0.003]
[1739371409444,0.209045,95673.0,95672.0,0.003]
[1739371409642,0.05084242,95674.0,95663.0,0.00222323]
[1739371410066,0.05084242,95674.0,95673.0,0.156784]
[1739371410271,0.00024038,95691.0,95673.0,0.10250365]
[1739371410468,0.00024038,95691.0,95690.0,0.156756]
[1739371411366,0.00024038,95691.0,95690.0,0.25925965]
[1739371411367,0.01980712,95691.0,95690.0,0.25925965]
[1739371411612,0.01980712,95691.0,95690.0,0.40925965]
[1739371412195,0.11980712,95691.0,95690.0,0.40925965]
[1739371412403,0.11980712,95691.0,95690.0,0.48985965]
[1739371412623,0.0740271,95701.0,95700.0,0.306739]
[1739371412832,0.0740271,95701.0,95700.0,0.40924265]
[1739371413037,0.0740271,95701.0,95700.0,0.41940265]
[1739371413449,1e-07,95701.0,95700.0,0.41940265]
[1739371414707,1e-07,95701.0,95700.0,0.42640265]
[1739371414911,1e-07,95701.0,95700.0,0.44733905]
[1739371415121,1e-07,95701.0,95700.0,0.41524265]
[1739371415325,1e-07,95701.0,95700.0,0.42600532]
[1739371416142,1e-07,95701.0,95700.0,0.44100532]
[1739371416378,0.08424999,95733.0,95721.0,0.156705]
[1739371416566,0.00055083,95722.0,95721.0,0.25920865]
[1739371417504,0.00055083,95722.0,95721.0,0.156705]
[1739371417939,0.00055083,95722.0,95721.0,0.163705]
[1739371418551,0.00055083,95722.0,95721.0,0.171705]
[1739371419125,0.20948883,95722.0,95697.0,0.208992]
[1739371419334,0.156716,95715.0,95707.0,0.156728]
[1739371419560,0.10250365,95714.0,95696.0,0.01067768]
[1739371419733,0.10250365,95714.0,95671.0,0.01116]
[1739371419944,0.023,95713.0,95700.0,0.00022386]
[1739371420213,0.0473,95717.0,95700.0,0.00022386]
[1739371420214,0.156735,95703.0,95700.0,0.00022386]
[1739371420397,0.0365708,95702.0,95700.0,0.00022386]
[1739371420592,0.208967,95709.0,95700.0,0.00022386]
[1739371420814,0.33284835,95709.0,95700.0,0.00022386]
[1739371421016,0.156734,95704.0,95700.0,0.00022386]
[1739371421155,0.12388135,95709.0,95700.0,0.00022386]
[1739371421355,0.156737,95702.0,95700.0,0.00022386]
[1739371421556,0.18479884,95702.0,95700.0,0.00122386]
[1739371422113,0.10250365,95701.0,95700.0,0.00122386]
[1739371423096,0.10250365,95701.0,95700.0,0.00722386]
[1739371423498,0.18070365,95701.0,95700.0,0.00622386]
[1739371423703,0.18070365,95701.0,95700.0,0.00822386]
[1739371423704,0.20370365,95701.0,95700.0,0.00822386]
[1739371423903,0.28262172,95701.0,95700.0,0.00822386]
[1739371424104,0.28262172,95701.0,95700.0,0.00622386]
[1739371424327,0.28262172,95701.0,95700.0,0.00122386]
[1739371424687,0.28262172,95701.0,95700.0,0.00722386]
[1739371424823,0.28262172,95701.0,95700.0,0.00822386]
[1739371425022,0.32762172,95701.0,95700.0,0.00822386]
[1739371425230,0.156798,95664.0,95649.0,0.209097]
[1739371425411,0.1724778,95664.0,95649.0,0.209097]
[1739371425801,0.1724778,95664.0,95646.0,0.209102]
[1739371426078,0.1724778,95664.0,95632.0,0.209132]
[1739371426079,0.28230165,95664.0,95627.0,0.209144]
[1739371426213,0.306805,95660.0,95614.0,0.08424999]
[1739371426415,0.43230865,95660.0,95627.0,0.156858]
[1739371426628,0.43230865,95660.0,95628.0,0.156856]
[1739371426828,0.43230865,95660.0,95631.0,0.156852]
[1739371427027,0.43230865,95660.0,95630.0,0.156854]
[1739371427303,0.45180131,95660.0,95625.0,0.00022344]
[1739371427794,0.45380131,95660.0,95633.0,0.156849]
[1739371427940,0.30380131,95660.0,95637.0,0.156842]
[1739371428146,0.30380131,95660.0,95638.0,0.15684]
[1739371428356,0.30380131,95660.0,95639.0,0.156838]
[1739371428552,0.28180131,95660.0,95641.0,0.156835]
[1739371428771,0.28180131,95660.0,95642.0,0.156834]
[1739371429058,0.01949266,95660.0,95646.0,0.209103]
[1739371429252,0.02149266,95660.0,95643.0,0.20911]
[1739371429477,0.02149266,95660.0,95658.0,0.156807]
[1739371429998,0.02349266,95660.0,95658.0,0.156807]
[1739371430212,0.02149266,95660.0,95658.0,0.156807]
[1739371430670,8.819e-05,95664.0,95660.0,0.156805]
[1739371430876,8.819e-05,95664.0,95663.0,0.1568]
[1739371431356,8.819e-05,95664.0,95659.0,0.00222323]
[1739371431357,0.156804,95661.0,95659.0,0.00022323]
[1739371431511,0.06775288,95660.0,95659.0,0.00322323]
[1739371432143,0.17025653,95660.0,95659.0,0.00322323]
[1739371432363,0.26925653,95660.0,95659.0,0.00322323]
[1739371432765,0.26925653,95660.0,95659.0,0.00022323]
[1739371433243,0.4454941,95660.0,95659.0,0.00022323]
[1739371433736,0.37774122,95660.0,95659.0,0.00022323]
[1739371434028,0.42414122,95660.0,95659.0,0.00022323]
[1739371434238,0.42614122,95660.0,95659.0,0.00022323]
[1739371434401,0.42414122,95660.0,95659.0,0.00022323]
[1739371434815,0.42414122,95660.0,95659.0,0.00222323]
[1739371434816,0.42614122,95660.0,95659.0,0.00222323]
[1739371434992,0.55584044,95660.0,95659.0,0.00222323]
[1739371435188,0.66614044,95660.0,95659.0,0.00222323]
[1739371435388,0.55584044,95660.0,95659.0,0.00022323]
[1739371435591,0.55884044,95660.0,95659.0,0.00022323]
[1739371436017,0.54884044,95660.0,95659.0,0.00022323]
[1739371436379,0.55384044,95660.0,95659.0,0.00022323]
[1739371436675,0.55884044,95660.0,95659.0,0.00022323]
[1739371436921,0.55684044,95660.0,95659.0,0.00022323]
[1739371437107,0.55684044,95660.0,95625.0,0.00022344]
[1739371437108,0.156861,95626.0,95625.0,0.00022344]
[1739371437325,0.12550365,95626.0,95623.0,0.00165542]
[1739371437488,0.156864,95624.0,95623.0,0.00165542]
[1739371437687,0.0762,95642.0,95623.0,0.00165542]
[1739371437891,0.01943257,95626.0,95623.0,0.00165542]
[1739371438116,0.01943257,95626.0,95625.0,0.001]
[1739371438349,0.01943257,95626.0,95625.0,0.00113378]
[1739371438498,0.01943257,95626.0,95625.0,0.26049943]
[1739371438701,0.01943257,95626.0,95625.0,0.28671492]
[1739371439218,0.005,95642.0,95641.0,0.156836]
[1739371439423,0.15682,95652.0,95646.0,0.156827]
[1739371439622,0.08424999,95649.0,95625.0,0.01099113]
[1739371439824,0.10250365,95648.0,95625.0,0.02599113]
[1739371440026,0.03137989,95662.0,95637.0,0.156842]
[1739371440259,0.156832,95644.0,95637.0,0.155842]
[1739371440573,0.156832,95644.0,95625.0,0.24114013]
[1739371440574,0.023,95651.0,95625.0,0.22428278]
[1739371440773,0.156843,95637.0,95625.0,0.22428278]
[1739371440938,0.156834,95643.0,95625.0,0.00013378]
[1739371441144,0.156818,95652.0,95626.0,0.10250365]
[1739371441343,0.209093,95651.0,95626.0,0.10250365]
[1739371441547,0.10250365,95650.0,95625.0,0.0212288]
[1739371441897,0.156832,95644.0,95637.0,0.156841]
[1739371442088,0.001,95637.0,95625.0,0.01013378]
[1739371442304,0.001,95637.0,95636.0,0.156844]
[1739371442472,0.156827,95647.0,95634.0,0.209129]
[1739371442682,0.09358325,95654.0,95625.0,0.00013378]
[1739371442881,0.09358325,95654.0,95653.0,0.156816]
[1739371443347,0.2091756,95663.0,95626.0,0.10250365]
[1739371443348,0.0001066,95663.0,95657.0,0.15681]
[1739371443555,0.0001066,95663.0,95662.0,0.156802]
[1739371444384,0.0001066,95663.0,95662.0,0.154802]
[1739371444582,0.0001066,95663.0,95662.0,0.15493578]
[1739371444960,0.0001066,95663.0,95662.0,0.15393578]
[1739371445551,0.0001066,95663.0,95662.0,0.15353578]
[1739371445776,0.0011066,95663.0,95662.0,0.16953578]
[1739371446179,0.0001066,95663.0,95662.0,0.15353578]
[1739371446612,0.0011066,95663.0,95662.0,0.17353578]
[1739371446781,0.0011066,95663.0,95662.0,0.42603943]
[1739371446996,0.01937733,95684.0,95683.0,0.306767]
[1739371447173,0.0766,95736.0,95714.0,0.156716]
[1739371447174,0.08424999,95718.0,95714.0,0.156716]
[1739371447618,0.156685,95733.0,95714.0,0.156716]
[1739371447819,0.24093299,95735.0,95714.0,0.156716]
[1739371448027,0.156686,95733.0,95714.0,0.155716]
[1739371448273,0.03105572,95739.0,95714.0,0.155716]
[1739371448418,0.09402778,95715.0,95714.0,0.25821965]
[1739371448617,0.09402778,95715.0,95714.0,0.40821965]
[1739371448864,0.09402778,95715.0,95714.0,0.41721965]
[1739371448865,0.09502778,95715.0,95714.0,0.41721965]
[1739371449209,0.00044453,95715.0,95714.0,0.40821965]
[1739371449428,0.00044453,95715.0,95714.0,0.41021965]
[1739371449644,0.00144453,95715.0,95714.0,0.41721965]
[1739371450213,0.00144453,95715.0,95714.0,0.42421965]
[1739371450544,0.00144453,95715.0,95714.0,0.43121965]
[1739371451159,0.00044453,95715.0,95714.0,0.42221965]
[1739371451370,0.00044453,95715.0,95714.0,0.43721965]
[1739371451788,0.00044453,95715.0,95714.0,0.155716]
[1739371452014,0.00044453,95715.0,95714.0,0.162716]
[1739371452445,0.00044453,95715.0,95714.0,0.170716]
[1739371452802,0.00044453,95715.0,95714.0,0.162716]
[1739371453006,0.00044453,95715.0,95714.0,0.170716]
[1739371453404,0.00044453,95715.0,95714.0,0.177716]
[1739371453629,0.00044453,95715.0,95714.0,0.170316]
[1739371454502,0.00044453,95715.0,95714.0,0.155316]
[1739371455763,0.00044453,95715.0,95714.0,0.162316]
[1739371455918,0.00044453,95715.0,95714.0,0.155316]
[1739371456258,0.00044453,95715.0,95714.0,0.162316]
[1739371456767,0.00044453,95715.0,95714.0,0.166316]
[1739371456971,0.00044453,95715.0,95714.0,0.173316]
[1739371457184,0.00044453,95715.0,95714.0,0.166316]
[1739371457185,0.00055113,95715.0,95714.0,0.166316]
[1739371457389,0.00055113,95715.0,95714.0,0.165716]
[1739371457694,0.00055113,95715.0,95714.0,0.20925955]
[1739371457896,0.08424999,95746.0,95731.0,0.156687]
[1739371458049,0.08424999,95746.0,95734.0,0.156682]
[1739371458050,0.156672,95741.0,95734.0,0.156682]
[1739371458264,0.156667,95744.0,95737.0,0.156678]
[1739371458483,0.25917265,95743.0,95735.0,0.156681]
[1739371458927,0.10250365,95743.0,95711.0,0.01062471]
[1739371459106,0.03329121,95742.0,95714.0,0.004]
[1739371459308,0.156679,95737.0,95729.0,0.156691]
[1739371459520,0.156677,95738.0,95717.0,0.208949]
[1739371459806,0.31140065,95741.0,95731.0,0.156689]
[1739371460030,0.023,95740.0,95729.0,0.156691]
[1739371460312,0.10250365,95739.0,95714.0,0.015]
[1739371460481,0.156715,95715.0,95714.0,0.015]
[1739371460682,0.25921865,95715.0,95714.0,0.015]
[1739371460883,0.25921865,95715.0,95689.0,0.01065523]
[1739371460884,0.10250365,95715.0,95689.0,0.01065523]
[1739371461111,0.10250365,95715.0,95688.0,0.08424999]
[1739371461112,0.1227,95737.0,95700.0,0.33958593]
[1739371461342,0.0471,95737.0,95703.0,0.208979]
[1739371461491,0.0471,95737.0,95732.0,0.156687]
[1739371461698,0.0471,95737.0,95705.0,0.208975]
[1739371461699,0.0472333,95737.0,95730.0,0.156689]
[1739371461903,0.156681,95736.0,95728.0,0.156693]
[1739371462136,0.0472333,95737.0,95730.0,0.15669]
[1739371462344,0.09373613,95737.0,95718.0,0.208947]
[1739371462578,0.0492333,95737.0,95717.0,0.01044461]
[1739371462857,0.0492333,95737.0,95735.0,0.156681]
[1739371463156,0.0021333,95737.0,95735.0,0.156681]
[1739371463362,0.0001333,95737.0,95735.0,0.156681]
[1739371463519,0.0001333,95737.0,95710.0,0.208963]
[1739371463726,0.10263695,95737.0,95710.0,0.01092466]
[1739371464047,0.10263695,95737.0,95730.0,0.15669]
[1739371464259,0.10263695,95737.0,95717.0,0.208947]
[1739371464495,0.10263695,95737.0,95701.0,0.358984]
[1739371464764,0.023,95734.0,95702.0,0.10250365]
[1739371464991,0.156687,95732.0,95722.0,0.156702]
[1739371465139,0.10250365,95732.0,95722.0,0.156702]
[1739371465487,0.10250365,95732.0,95702.0,0.10250365]
[1739371465685,0.10250365,95731.0,95703.0,0.15]
[1739371465888,0.156694,95728.0,95720.0,0.156706]
[1739371466091,0.156694,95728.0,95702.0,0.1129675]
[1739371466092,0.0001333,95737.0,95702.0,0.1149675]
[1739371466318,0.156686,95733.0,95724.0,0.156699]
[1739371466509,0.10250365,95736.0,95702.0,0.1149675]
[1739371466726,0.10250365,95736.0,95720.0,0.156706]
[1739371466727,0.156694,95728.0,95720.0,0.156706]
[1739371466858,0.156695,95727.0,95702.0,0.1159675]
[1739371467065,0.1567,95724.0,95716.0,0.156712]
[1739371467473,0.25920065,95727.0,95719.0,0.156708]
[1739371467679,0.156699,95725.0,95715.0,0.208952]
[1739371468171,0.156697,95726.0,95715.0,0.208952]
[1739371468394,0.10250365,95726.0,95720.0,0.156707]
[1739371468601,0.208912,95734.0,95716.0,0.004]
[1739371468799,0.12570818,95732.0,95717.0,0.208949]
[1739371469005,0.156695,95727.0,95719.0,0.156708]
[1739371469192,0.156697,95726.0,95719.0,0.156708]
[1739371469393,0.12570818,95732.0,95716.0,0.208951]
[1739371469603,0.10250365,95732.0,95722.0,0.156702]
[1739371469808,0.156695,95727.0,95715.0,0.001]
[1739371470033,0.156694,95728.0,95721.0,0.156704]
[1739371470231,0.25919165,95732.0,95715.0,0.001]
[1739371470454,0.001,95726.0,95712.0,0.01064371]
[1739371470628,0.001,95726.0,95708.0,0.208968]
[1739371470830,0.001,95726.0,95725.0,0.156698]
[1739371472287,0.023,95736.0,95725.0,0.003]
[1739371472492,0.002,95732.0,95725.0,0.003]
[1739371472690,0.156692,95729.0,95725.0,0.003]
[1739371473239,0.156694,95728.0,95725.0,0.007]
[1739371473420,0.156697,95726.0,95725.0,0.003]
[1739371473625,0.0365606,95727.0,95725.0,0.002]
[1739371473835,0.0001333,95737.0,95736.0,0.15668]
[1739371474272,0.0001333,95737.0,95736.0,0.15608]
[1739371474465,0.0001333,95737.0,95725.0,0.002]
[1739371474679,0.0001333,95737.0,95735.0,0.156681]
[1739371474817,0.0001333,95737.0,95732.0,0.208915]
[1739371475013,0.0001333,95737.0,95725.0,0.002]
[1739371475014,0.02103563,95737.0,95727.0,0.208927]
[1739371475224,0.156684,95734.0,95726.0,0.156696]
[1739371475429,0.208915,95733.0,95725.0,0.002]
[1739371475624,0.208915,95733.0,95702.0,0.20898]
[1739371475625,0.10250365,95736.0,95702.0,0.20898]
[1739371475947,0.156694,95728.0,95719.0,0.156708]
[1739371476158,0.156703,95723.0,95715.0,0.156713]
[1739371476380,0.01791338,95728.0,95694.0,0.208998]
[1739371476381,0.01791338,95728.0,95695.0,0.01108]
[1739371476590,0.156695,95727.0,95698.0,0.15]
[1739371476757,0.208901,95739.0,95700.0,0.15]
[1739371476758,0.023,95735.0,95700.0,0.15]
[1739371476959,0.1567,95724.0,95717.0,0.15671]
[1739371477174,0.156704,95722.0,95701.0,0.208984]
[1739371477378,0.156704,95722.0,95714.0,0.156715]
[1739371477602,0.156704,95722.0,95697.0,0.01092181]
[1739371477603,0.10250365,95722.0,95697.0,0.01092181]
[1739371477819,0.023,95730.0,95700.0,0.156739]
[1739371477820,0.156725,95709.0,95700.0,0.156739]
[1739371478036,0.10250365,95721.0,95699.0,0.22031744]
[1739371478383,0.156695,95727.0,95718.0,0.156709]
[1739371478935,0.0209131,95733.0,95715.0,0.208951]
[1739371478936,0.1567,95725.0,95715.0,0.156714]
[1739371479255,0.1567,95725.0,95716.0,0.156713]
[1739371479432,0.208918,95731.0,95714.0,0.156715]
[1739371479642,0.01,95756.0,95700.0,0.10250365]
[1739371479643,0.208891,95744.0,95709.0,0.01051552]
[1739371479844,0.10957698,95734.0,95718.0,0.156708]
[1739371480046,0.156694,95728.0,95718.0,0.156708]
[1739371480247,0.156696,95727.0,95716.0,0.20895]
[1739371480390,0.156696,95727.0,95717.0,0.156711]
[1739371480589,0.208916,95732.0,95700.0,0.33359742]
[1739371480846,0.156688,95732.0,95700.0,0.33359742]
[1739371480987,0.31141565,95734.0,95700.0,0.33359742]
[1739371480988,0.15669,95731.0,95722.0,0.156702]
[1739371481192,0.156687,95732.0,95723.0,0.156701]
[1739371481411,0.156687,95733.0,95718.0,0.002]
[1739371481627,0.10250365,95734.0,95718.0,0.15871]
[1739371481834,0.023,95732.0,95700.0,0.01074219]
[1739371482077,0.156709,95719.0,95699.0,0.208987]
[1739371482198,0.208934,95724.0,95713.0,0.156718]
[1739371482403,0.208934,95724.0,95715.0,0.156714]
[1739371482622,0.10250365,95731.0,95700.0,0.00022365]
[1739371482916,0.0476,95735.0,95722.0,0.156703]
[1739371482917,0.15669,95730.0,95722.0,0.156703]
[1739371483119,0.15669,95730.0,95701.0,0.10250365]
[1739371483120,0.208914,95733.0,95701.0,0.10250365]
[1739371483326,0.10250365,95734.0,95701.0,0.10250365]
[1739371483557,0.10250365,95734.0,95722.0,0.156703]
[1739371483916,0.156692,95729.0,95721.0,0.156705]
[1739371484606,0.002,95731.0,95701.0,0.10250365]
[1739371484801,0.002,95731.0,95730.0,0.15669]
[1739371485029,0.002,95731.0,95726.0,0.156697]
[1739371485235,0.208907,95736.0,95701.0,0.10250365]
[1739371485458,0.002,95733.0,95702.0,0.208282]
[1739371485661,0.002,95733.0,95727.0,0.156695]
[1739371485863,0.0001333,95737.0,95704.0,0.208977]
[1739371486066,0.001,95731.0,95700.0,0.22057523]
[1739371486267,0.10350365,95731.0,95701.0,0.10250365]
[1739371486896,0.0001333,95737.0,95710.0,0.22035158]
[1739371487099,0.0001333,95737.0,95710.0,0.10250365]
[1739371487277,0.156682,95735.0,95727.0,0.156694]
[1739371487479,0.156684,95735.0,95723.0,0.208935]
[1739371487777,0.156684,95735.0,95726.0,0.156697]